bitfinex/quotes_SOLUSD_20241031
["timestamp","ask_amount","ask_price","bid_price","bid_amount"]
[1730335029548,70.0,175.55,175.51,19.9418]
[1730335031456,70.0,175.57,175.54,11.27482912]
[1730335031656,70.0,175.59,175.56,11.27482912]
[1730335031860,70.0,175.59,175.55,11.27482912]
[1730335032027,70.0,175.59,175.56,11.27482912]
[1730335032253,70.0,175.59,175.55,11.27482912]
[1730335032949,81.27482912,175.61,175.55,11.27482912]
[1730335033131,81.27482912,175.61,175.57,19.935]
[1730335033757,70.0,175.61,175.57,31.20982912]
[1730335037757,70.0,175.59,175.57,19.935]
[1730335038444,70.0,175.57,175.54,14.2417]
[1730335038647,81.27482912,175.57,175.54,19.938]
[1730335039437,11.27482912,175.56,175.54,14.2417]
[1730335039935,81.27482912,175.57,175.54,14.2417]
[1730335041938,70.0,175.55,175.54,14.2417]
[1730335044535,70.0,175.57,175.54,14.2417]
[1730335044752,70.0,175.59,175.55,11.27482912]
[1730335045464,70.0,175.57,175.54,25.51652912]
[1730335045754,70.0,175.57,175.54,14.2417]
[1730335045960,70.0,175.57,175.54,19.9384]
[1730335046551,81.27482912,175.57,175.54,19.9384]
[1730335047439,70.0,175.57,175.54,19.9384]
[1730335048139,70.0,175.57,175.54,14.2417]
[1730335049242,70.0,175.57,175.54,25.51652912]
[1730335050764,70.0,175.57,175.54,19.9384]
[1730335051065,81.27482912,175.55,175.51,23.776884]
[1730335051275,11.27482912,175.54,175.51,5.6973]
[1730335051438,70.0,175.53,175.51,5.6973]
[1730335051635,70.0,175.53,175.5,23.776884]
[1730335051636,81.27482912,175.53,175.49,5.6983]
[1730335051872,81.27482912,175.53,175.47,11.27482912]
[1730335051873,70.0,175.5,175.48,14.2463]
[1730335052968,70.0,175.5,175.47,11.27482912]
[1730335053164,70.0,175.5,175.46,23.776884]
[1730335053377,70.0,175.5,175.46,35.05171312]
[1730335053678,70.0,175.5,175.47,11.27482912]
[1730335054546,70.0,175.5,175.48,19.9452]
[1730335056463,70.0,175.52,175.48,14.2466]
[1730335056651,70.0,175.52,175.49,11.27482912]
[1730335057169,70.0,175.52,175.48,25.52142912]
[1730335057372,70.0,175.52,175.49,11.27482912]
[1730335057536,70.0,175.52,175.5,5.698]
[1730335057882,70.0,175.52,175.5,19.943]
[1730335061568,81.27482912,175.52,175.5,14.245]
[1730335062452,81.27482912,175.52,175.46,35.05171312]
[1730335062678,81.27482912,175.52,175.48,23.776884]
[1730335063482,70.0,175.52,175.48,23.776884]
[1730335064369,70.0,175.54,175.49,31.21892912]
[1730335064568,70.0,175.52,175.49,31.21892912]
[1730335065252,70.0,175.54,175.5,11.27482912]
[1730335070072,70.0,175.54,175.51,19.9418]
[1730335070852,70.0,175.56,175.51,31.21662912]
[1730335072479,70.0,175.56,175.52,11.27482912]
[1730335072774,70.0,175.56,175.53,11.27482912]
[1730335072979,70.0,175.56,175.54,11.27482912]
[1730335073355,70.0,175.56,175.53,11.27482912]
[1730335074069,70.0,175.56,175.53,23.776884]
[1730335074461,70.0,175.56,175.54,5.6967]
[1730335078970,70.0,175.56,175.52,5.6973]
[1730335079179,70.0,175.54,175.51,14.2442]
[1730335079476,81.27482912,175.54,175.51,14.2442]
[1730335079663,70.0,175.52,175.49,5.6983]
[1730335080487,70.0,175.52,175.49,16.97312912]
[1730335081816,70.0,175.52,175.48,11.27482912]
[1730335082579,70.0,175.5,175.47,25.52152912]
[1730335083970,70.0,175.5,175.47,31.22042912]
[1730335084572,70.0,175.5,175.47,19.9456]
[1730335086989,70.0,175.5,175.47,14.2467]
[1730335089668,70.0,175.48,175.47,14.2467]
[1730335090693,70.0,175.48,175.44,11.27482912]
[1730335090864,70.0,175.48,175.44,23.776884]
[1730335091191,70.0,175.46,175.43,14.2499]
[1730335092876,70.0,175.46,175.43,25.52472912]
[1730335093974,70.0,175.46,175.43,31.22492912]
[1730335095654,81.27482912,175.46,175.43,19.9501]
[1730335095711,70.0,175.44,175.43,14.2499]
[1730335097697,70.0,175.44,175.43,25.52472912]
[1730335097991,15.4211,175.47,175.43,25.52472912]
[1730335097992,70.0,175.46,175.43,49.30161312]
[1730335098169,70.0,175.46,175.44,11.27482912]
[1730335098683,70.0,175.46,175.43,49.30161312]
[1730335098900,70.0,175.46,175.44,11.27482912]
[1730335099679,70.0,175.46,175.45,5.6996]
[1730335101402,70.0,175.46,175.44,5.6999]
[1730335101592,70.0,175.48,175.44,31.22452912]
[1730335101988,70.0,175.48,175.45,11.27482912]
[1730335102176,70.0,175.48,175.45,23.776884]
[1730335102383,70.0,175.48,175.45,35.05171312]
[1730335103501,70.0,175.48,175.46,5.6993]
[1730335103999,70.0,175.46,175.44,19.9495]
[1730335105194,70.0,175.46,175.44,31.22432912]
[1730335106798,70.0,175.46,175.44,19.9495]
[1730335107383,70.0,175.46,175.44,31.22432912]
[1730335109816,70.0,175.46,175.44,19.9495]
[1730335111419,70.0,175.46,175.44,14.2498]
[1730335111800,70.0,175.46,175.44,25.52462912]
[1730335112007,70.0,175.48,175.45,11.27482912]
[1730335112383,70.0,175.46,175.45,11.27482912]
[1730335112581,70.0,175.46,175.44,31.22452912]
[1730335114484,70.0,175.49,175.45,11.27482912]
[1730335114688,15.9588,175.51,175.44,19.9497]
[1730335114689,85.9588,175.51,175.47,11.27482912]
[1730335116506,85.9588,175.51,175.47,16.97352912]
[1730335118205,70.0,175.48,175.47,5.6987]
[1730335118523,70.0,175.48,175.46,25.52262912]
[1730335118524,70.0,175.48,175.46,14.2478]
[1730335118698,70.0,175.48,175.46,19.9471]
[1730335119508,70.0,175.46,175.44,5.6996]
[1730335122329,70.0,175.46,175.44,11.27482912]
[1730335122614,70.0,175.5,175.45,11.27482912]
[1730335122821,75.698,175.5,175.46,11.27482912]
[1730335126218,70.0,175.5,175.46,16.97402912]
[1730335126619,75.698,175.5,175.46,16.97402912]
[1730335127548,70.0,175.48,175.46,16.97402912]
[1730335127793,70.0,175.48,175.46,11.27482912]
[1730335129031,70.0,175.48,175.45,31.22282912]
[1730335130215,70.0,175.48,175.45,19.948]
[1730335130929,70.0,175.46,175.43,29.476984]
[1730335131109,70.0,175.46,175.43,43.727584]
[1730335131486,70.0,175.46,175.43,55.00241312]
[1730335132334,70.0,175.46,175.45,11.27482912]
[1730335133136,70.0,175.46,175.44,16.97462912]
[1730335133732,70.0,175.46,175.45,11.27482912]
[1730335135930,70.0,175.5,175.45,31.22312912]
[1730335136119,70.0,175.5,175.47,11.27482912]
[1730335140114,70.0,175.48,175.47,11.27482912]
[1730335140431,70.0,175.48,175.46,16.97402912]
[1730335142015,75.698,175.5,175.46,16.97402912]
[1730335142418,70.0,175.48,175.46,16.97402912]
[1730335145229,70.0,175.52,175.49,11.27482912]
[1730335146535,70.0,175.5,175.47,23.776884]
[1730335146714,70.0,175.5,175.47,29.475784]
[1730335146918,70.0,175.5,175.46,31.22212912]
[1730335147130,70.0,175.5,175.47,11.27482912]
[1730335147317,70.0,175.5,175.49,11.27482912]
[1730335148133,70.0,175.5,175.48,16.97342912]
[1730335148539,70.0,175.5,175.48,5.6986]
[1730335149538,70.0,175.5,175.47,11.27482912]
[1730335149743,70.0,175.5,175.47,16.97362912]
[1730335150431,70.0,175.5,175.47,11.27482912]
[1730335150633,75.698,175.5,175.46,25.52302912]
[1730335151326,70.0,175.5,175.49,11.27482912]
[1730335152132,70.0,175.5,175.48,16.97332912]
[1730335153208,70.0,175.5,175.49,11.27482912]
[1730335159941,70.0,175.5,175.47,23.776884]
[1730335159942,70.0,175.5,175.47,40.75061312]
[1730335160614,70.0,175.5,175.48,11.27482912]
[1730335162118,70.0,175.5,175.49,11.27482912]
[1730335165855,70.0,175.5,175.48,16.97342912]
[1730335166039,70.0,175.5,175.48,11.27482912]
[1730335166238,70.0,175.48,175.47,11.27482912]
[1730335166447,70.0,175.48,175.44,16.97452912]
[1730335166758,70.0,175.46,175.45,11.27482912]
[1730335168659,70.0,175.48,175.45,31.22322912]
[1730335168834,70.0,175.48,175.47,11.27482912]
[1730335172552,70.0,175.48,175.46,11.27482912]
[1730335178959,70.0,175.46,175.44,11.27482912]
[1730335180739,70.0,175.48,175.45,11.27482912]
[1730335181064,70.0,175.48,175.46,11.27482912]
[1730335183260,70.0,175.46,175.43,19.9507]
[1730335183568,70.0,175.46,175.44,11.27482912]
[1730335185364,70.0,175.46,175.45,11.27482912]
[1730335186267,70.0,175.48,175.45,11.27482912]
[1730335186443,70.0,175.48,175.46,11.27482912]
[1730335190148,70.0,175.51,175.47,35.05171312]
[1730335190468,75.6971,175.53,175.5,11.27482912]
[1730335190648,70.0,175.53,175.5,11.27482912]
[1730335191972,75.697,175.53,175.5,11.27482912]
[1730335193259,70.0,175.53,175.5,11.27482912]
[1730335193457,70.0,175.51,175.5,11.27482912]
[1730335193860,70.0,175.53,175.5,11.27482912]
[1730335194172,70.0,175.53,175.51,11.27482912]
[1730335194777,70.0,175.53,175.52,11.27482912]
[1730335195154,70.0,175.55,175.5,19.9429]
[1730335195368,70.0,175.55,175.53,11.27482912]
[1730335195564,70.0,175.55,175.52,11.27482912]
[1730335196250,70.0,175.57,175.54,11.27482912]
[1730335196676,70.0,175.57,175.54,16.97132912]
[1730335198671,70.0,175.55,175.54,16.97132912]
[1730335198872,70.0,175.55,175.53,11.27482912]
[1730335200257,70.0,175.55,175.53,16.97162912]
[1730335200676,70.0,175.57,175.54,11.27482912]
[1730335200981,70.0,175.55,175.54,11.27482912]
[1730335201156,70.0,175.55,175.53,31.21412912]
[1730335201879,70.0,175.58,175.54,35.05171312]
[1730335202085,70.0,175.58,175.56,11.27482912]
[1730335202455,70.0,175.58,175.54,23.776884]
[1730335202656,70.0,175.58,175.56,11.27482912]
[1730335204371,70.0,175.56,175.54,40.74831312]
[1730335206780,70.0,175.56,175.55,11.27482912]
[1730335207971,70.0,175.56,175.54,40.74831312]
[1730335209169,70.0,175.56,175.55,11.27482912]
[1730335212094,70.0,175.56,175.54,40.74831312]
[1730335212984,70.0,175.56,175.53,19.9394]
[1730335213288,70.0,175.52,175.5,14.2445]
[1730335214159,70.0,175.52,175.48,11.27482912]
[1730335214160,70.0,175.52,175.48,5.6985]
[1730335214364,70.0,175.52,175.47,14.247]
[1730335214365,70.0,175.5,175.47,14.247]
[1730335214565,70.0,175.5,175.47,25.52182912]
[1730335214984,70.0,175.5,175.44,42.7493]
[1730335215182,70.0,175.48,175.47,11.27482912]
[1730335215373,70.0,175.48,175.46,11.27482912]
[1730335215786,70.0,175.48,175.45,31.22312912]
[1730335215988,70.0,175.48,175.45,19.9483]
[1730335217093,70.0,175.46,175.45,14.249]
[1730335217598,70.0,175.44,175.41,14.2519]
[1730335218686,70.0,175.42,175.41,14.2519]
[1730335218985,70.0,175.44,175.41,31.22762912]
[1730335219187,70.0,175.44,175.43,11.27482912]
[1730335219372,70.0,175.46,175.43,11.27482912]
[1730335219573,70.0,175.44,175.43,11.27482912]
[1730335220167,70.0,175.44,175.42,35.05171312]
[1730335221986,70.0,175.44,175.43,5.7002]
[1730335222200,70.0,175.44,175.36,21.9698]
[1730335222201,81.27482912,175.44,175.39,14.2532]
[1730335222502,70.0,175.42,175.4,23.776884]
[1730335223580,70.0,175.42,175.4,29.478084]
[1730335227766,81.27482912,175.42,175.39,14.2532]
[1730335229186,81.27482912,175.42,175.39,19.9547]
[1730335229793,70.0,175.39,175.37,5.7021]
[1730335230198,70.0,175.39,175.37,16.97692912]
[1730335230501,70.0,175.39,175.37,31.23242912]
[1730335231885,70.0,175.39,175.36,11.27482912]
[1730335232078,70.0,175.39,175.36,23.776884]
[1730335232894,70.0,175.37,175.33,31.23712912]
[1730335233102,70.0,175.37,175.33,19.9623]
[1730335233280,70.0,175.37,175.33,31.23712912]
[1730335234194,70.0,175.37,175.34,29.479684]
[1730335234974,81.27482912,175.37,175.34,29.479684]
[1730335235682,70.0,175.37,175.34,29.479684]
[1730335239991,70.0,175.35,175.33,14.2588]
[1730335240197,70.0,175.35,175.33,19.9622]
[1730335241488,70.0,175.35,175.27,16.5723]
[1730335241693,70.0,175.35,175.28,72.270484]
[1730335247100,70.0,175.37,175.28,72.270484]
[1730335250586,70.0,175.39,175.29,0.1]
[1730335250804,70.0,175.39,175.28,100.896184]
[1730335252405,70.0,175.39,175.28,100.996184]
[1730335253389,70.0,175.39,175.29,0.1]
[1730335253680,70.0,175.39,175.31,23.776884]
[1730335254787,70.0,175.39,175.33,23.776884]
[1730335255597,70.0,175.41,175.33,23.776884]
[1730335256612,75.7009,175.41,175.33,23.776884]
[1730335256907,70.0,175.39,175.33,23.776884]
[1730335257213,70.0,175.39,175.35,23.776884]
[1730335258007,70.0,175.39,175.37,23.776884]
[1730335259603,75.7009,175.41,175.37,23.776884]
[1730335260384,70.0,175.39,175.37,23.776884]
[1730335262789,70.0,175.39,175.35,5.7028]
[1730335262991,70.0,175.39,175.36,23.776884]
[1730335268593,70.0,175.37,175.34,19.9611]
[1730335268805,70.0,175.37,175.34,14.258]
[1730335269290,70.0,175.37,175.34,19.9612]
[1730335269805,70.0,175.37,175.33,23.776884]
[1730335271816,70.0,175.39,175.35,23.776884]
[1730335273019,70.0,175.39,175.36,5.7025]
[1730335278606,75.7017,175.39,175.35,29.479484]
[1730335279426,70.0,175.39,175.35,29.479484]
[1730335288931,70.0,175.39,175.28,28.5257]
[1730335288932,70.0,175.37,175.28,28.5257]
[1730335289121,70.0,175.37,175.32,23.776884]
[1730335289432,70.0,175.35,175.32,23.776884]
[1730335289629,70.0,175.35,175.31,14.26]
[1730335290236,70.0,175.35,175.27,16.5723]
[1730335290412,75.703,175.35,175.28,19.9679]
[1730335291130,75.703,175.35,175.29,23.776884]
[1730335292139,75.703,175.35,175.31,23.776884]
[1730335292845,70.0,175.32,175.3,14.2612]
[1730335294211,70.0,175.32,175.24,72.381584]
[1730335294928,70.0,175.32,175.24,72.281584]
[1730335297149,70.0,175.32,175.24,72.381584]
[1730335297456,70.0,175.32,175.24,72.281584]
[1730335300024,70.0,175.32,175.24,72.381584]
[1730335300323,70.0,175.34,175.25,0.1]
[1730335301552,70.0,175.34,175.24,72.481584]
[1730335301734,70.0,175.34,175.25,0.1]
[1730335302044,70.0,175.34,175.24,72.381584]
[1730335303834,70.0,175.34,175.24,72.281584]
[1730335304549,70.0,175.32,175.24,48.5047]
[1730335306145,70.0,175.32,175.25,23.776884]
[1730335306352,70.0,175.32,175.27,23.776884]
[1730335307256,70.0,175.32,175.28,19.9679]
[1730335307635,70.0,175.32,175.29,23.776884]
[1730335308464,70.0,175.32,175.29,29.481484]
[1730335310661,70.0,175.32,175.29,43.743484]
[1730335318341,70.0,175.34,175.29,43.743484]
[1730335320845,70.0,175.36,175.29,43.743484]
[1730335321349,70.0,175.34,175.29,43.743484]
[1730335326353,70.0,175.32,175.29,43.743484]
[1730335332061,70.0,175.34,175.29,43.743484]
[1730335333075,70.0,175.32,175.29,43.743484]
[1730335336879,70.0,175.3,175.29,14.262]
[1730335337057,70.0,175.3,175.28,5.7048]
[1730335338377,70.0,175.3,175.27,23.776884]
[1730335339459,70.0,175.3,175.28,5.7051]
[1730335341979,70.0,175.3,175.26,14.264]
[1730335342185,70.0,175.27,175.26,19.9698]
[1730335343272,70.0,175.27,175.23,23.776884]
[1730335344582,70.0,175.27,175.25,23.776884]
[1730335345283,70.0,175.29,175.26,19.9703]
[1730335345595,70.0,175.29,175.27,23.776884]
[1730335345882,70.0,175.31,175.27,23.776884]
[1730335347391,70.0,175.31,175.29,23.776884]
[1730335349475,70.0,175.31,175.29,29.481384]
[1730335352677,15.7782,175.35,175.22,28.6351]
[1730335352678,70.0,175.29,175.25,23.776884]
[1730335354291,70.0,175.29,175.27,23.776884]
[1730335356194,70.0,175.29,175.28,5.7051]
[1730335362511,70.0,175.31,175.28,5.7051]
[1730335362869,70.0,175.31,175.29,23.776884]
[1730335364881,70.0,175.31,175.29,29.481384]
[1730335367300,21.4812,175.35,175.28,14.2628]
[1730335367301,70.0,175.29,175.28,14.2628]
[1730335367883,70.0,175.29,175.24,14.2656]
[1730335367884,70.0,175.26,175.24,14.2656]
[1730335368199,70.0,175.26,175.18,5.7084]
[1730335368986,70.0,175.26,175.18,48.5214]
[1730335369195,70.0,175.24,175.19,23.776884]
[1730335370409,70.0,175.24,175.21,23.776884]
[1730335371281,70.0,175.24,175.22,5.7071]
[1730335372702,70.0,175.24,175.21,23.776884]
[1730335374410,70.0,175.24,175.21,29.484284]
[1730335380212,70.0,175.22,175.17,14.2714]
[1730335380688,70.0,175.22,175.18,23.776884]
[1730335381383,70.0,175.22,175.18,29.484984]
[1730335383214,70.0,175.2,175.18,29.484984]
[1730335385044,70.0,175.2,175.18,19.07816142]
[1730335385516,70.0,175.2,175.14,28.5481]
[1730335386314,70.0,175.22,175.14,28.5481]
[1730335386703,70.0,175.22,175.14,34.6171]
[1730335387405,70.0,175.22,175.15,23.776884]
[1730335387604,70.0,175.22,175.16,19.9816]
[1730335387808,70.0,175.22,175.17,23.776884]
[1730335388603,70.0,175.24,175.17,23.776884]
[1730335388813,70.0,175.24,175.19,23.776884]
[1730335392329,70.0,175.24,175.2,5.7077]
[1730335395707,75.7065,175.24,175.2,5.7077]
[1730335401836,70.0,175.2,175.14,6.069]
[1730335402138,70.0,175.2,175.15,19.9823]
[1730335403043,70.0,175.2,175.15,14.273]
[1730335404244,70.0,175.2,175.16,23.776884]
[1730335404541,70.0,175.2,175.16,29.485684]
[1730335405437,70.0,175.18,175.15,14.273]
[1730335410642,70.0,175.2,175.16,23.776884]
[1730335411021,70.0,175.22,175.16,23.776884]
[1730335412737,70.0,175.22,175.18,23.776884]
[1730335413938,70.0,175.22,175.19,19.9782]
[1730335414646,5.7058,175.26,175.2,23.776884]
[1730335414647,70.0,175.24,175.2,23.776884]
[1730335415344,70.0,175.26,175.2,23.776884]
[1730335415735,70.0,175.28,175.2,23.776884]
[1730335415924,70.0,175.28,175.22,23.776884]
[1730335418146,70.0,175.28,175.24,23.776884]
[1730335419732,70.0,175.28,175.25,19.9714]
[1730335425254,70.0,175.3,175.26,23.776884]
[1730335427051,70.0,175.3,175.27,5.7054]
[1730335427649,70.0,175.3,175.26,23.776884]
[1730335427954,70.0,175.26,175.24,5.7064]
[1730335429043,70.0,175.28,175.2,48.5159]
[1730335429252,70.0,175.28,175.21,23.776884]
[1730335429942,70.0,175.3,175.21,23.776884]
[1730335431149,70.0,175.3,175.23,23.776884]
[1730335432051,70.0,175.28,175.23,23.776884]
[1730335433354,70.0,175.28,175.25,23.776884]
[1730335434655,70.0,175.28,175.25,29.482684]
[1730335436063,70.0,175.3,175.25,43.747984]
[1730335441470,70.0,175.28,175.25,14.2653]
[1730335441655,70.0,175.26,175.22,14.2676]
[1730335442749,70.0,175.26,175.2,28.5388]
[1730335442958,70.0,175.26,175.21,23.776884]
[1730335445176,70.0,175.24,175.2,29.484384]
[1730335445550,70.0,175.24,175.2,43.753784]
[1730335446870,70.0,175.21,175.18,5.7084]
[1730335447874,70.0,175.21,175.16,14.2719]
[1730335447875,70.0,175.21,175.17,5.7086]
[1730335448979,70.0,175.19,175.13,19.9851]
[1730335449155,70.0,175.19,175.14,23.776884]
[1730335450663,70.0,175.19,175.16,23.776884]
[1730335451957,70.0,175.19,175.15,19.9827]
[1730335452156,70.0,175.17,175.15,19.9827]
[1730335452783,70.0,175.17,175.15,14.2734]
[1730335466977,70.0,175.19,175.15,14.2734]
[1730335468288,70.0,175.19,175.16,23.776884]
[1730335469284,70.0,175.19,175.17,5.7087]
[1730335471192,70.0,175.19,175.16,5.7089]
[1730335471492,70.0,175.19,175.16,19.9815]
[1730335473296,70.0,175.19,175.12,29.143967]
[1730335473472,70.0,175.19,175.14,23.776884]
[1730335474782,70.0,175.19,175.15,19.9827]
[1730335475109,70.0,175.19,175.16,23.776884]
[1730335477110,70.0,175.19,175.17,5.7087]
[1730335486498,75.7082,175.19,175.12,43.419467]
[1730335486707,70.0,175.16,175.13,5.7098]
[1730335487887,70.0,175.16,175.13,19.9849]
[1730335502499,70.0,175.22,175.14,23.776884]
[1730335504606,70.0,175.22,175.16,23.776884]
[1730335505609,70.0,175.22,175.18,23.776884]
[1730335506601,70.0,175.22,175.19,19.9782]
[1730335511717,15.1949,175.25,175.2,23.776884]
[1730335511889,70.0,175.26,175.2,23.776884]
[1730335512893,70.0,175.28,175.2,23.776884]
[1730335513507,15.3174,175.29,175.2,23.976884]
[1730335513709,70.0,175.32,175.22,20.0748]
[1730335513899,70.0,175.32,175.23,23.776884]
[1730335514894,70.0,175.32,175.25,23.776884]
[1730335516298,70.0,175.32,175.27,23.776884]
[1730335517514,70.0,175.32,175.28,5.7051]
[1730335518615,70.0,175.32,175.28,19.9679]
[1730335519216,85.6259,175.34,175.29,23.776884]
[1730335519716,70.0,175.36,175.31,23.776884]
[1730335520220,70.0,175.34,175.31,23.776884]
[1730335521318,70.0,175.34,175.31,43.741084]
[1730335521701,70.0,175.34,175.31,14.2604]
[1730335521901,70.0,175.32,175.3,5.7044]
[1730335522697,70.0,175.32,175.29,29.481584]
[1730335525608,5.7033,175.34,175.29,43.743584]
[1730335525609,70.0,175.34,175.29,43.743584]
[1730335526622,70.0,175.36,175.29,43.743584]
[1730335526918,70.0,175.34,175.29,43.743584]
[1730335537014,70.0,175.36,175.29,43.743584]
[1730335537504,70.0,175.36,175.29,72.267684]
[1730335539236,75.7021,175.38,175.29,72.267684]
[1730335540021,70.0,175.38,175.29,72.267684]
[1730335540337,70.0,175.38,175.3,15.0195]
[1730335540633,70.0,175.38,175.31,23.776884]
[1730335540823,70.0,175.4,175.31,23.776884]
[1730335541028,70.0,175.4,175.31,23.876884]
[1730335541216,70.0,175.4,175.32,19.9634]
[1730335541412,70.0,175.4,175.33,23.776884]
[1730335543119,70.0,175.4,175.34,19.9612]
[1730335543438,70.0,175.4,175.35,23.776884]
[1730335544715,70.0,175.4,175.37,23.776884]
[1730335547215,5.7009,175.41,175.37,29.478984]
[1730335547610,70.0,175.4,175.37,29.478984]
[1730335553041,70.0,175.42,175.37,43.734484]
[1730335553417,21.0166,175.43,175.37,43.734484]
[1730335553418,15.3161,175.43,175.37,43.734484]
[1730335554927,70.0,175.44,175.37,43.734484]
[1730335555337,70.0,175.46,175.37,43.734484]
[1730335555624,70.0,175.48,175.4,0.1]
[1730335555943,75.6981,175.5,175.39,0.1]
[1730335556138,75.6981,175.5,175.4,0.1]
[1730335556726,75.6981,175.5,175.42,23.776884]
[1730335556929,70.0,175.5,175.42,23.776884]
[1730335558038,16.2938,175.51,175.42,23.776884]
[1730335558758,16.2938,175.51,175.44,23.776884]
[1730335559551,70.0,175.58,175.47,0.1]
[1730335559940,70.0,175.58,175.48,0.1]
[1730335560742,70.0,175.58,175.5,23.776884]
[1730335562151,21.8281,175.6,175.52,23.776884]
[1730335562152,86.1331,175.6,175.52,23.776884]
[1730335562748,70.0,175.58,175.52,23.776884]
[1730335563931,70.0,175.58,175.54,23.776884]
[1730335564546,91.8279,175.6,175.54,23.776884]
[1730335564744,86.1331,175.6,175.54,23.776884]
[1730335565169,82.1201,175.62,175.54,23.776884]
[1730335565351,76.426,175.62,175.54,23.776884]
[1730335565561,70.0,175.62,175.54,23.776884]
[1730335565851,70.0,175.62,175.56,23.776884]
[1730335567150,70.0,175.62,175.58,23.776884]
[1730335567738,85.6515,175.64,175.58,23.776884]
[1730335569454,85.6515,175.64,175.6,23.776884]
[1730335569654,70.0,175.64,175.6,23.776884]
[1730335569859,70.0,175.67,175.6,23.776884]
[1730335570951,70.0,175.65,175.6,23.776884]
[1730335571357,70.0,175.67,175.62,23.776884]
[1730335571537,70.0,175.65,175.62,23.776884]
[1730335571741,70.0,175.67,175.62,23.776884]
[1730335573453,70.0,175.67,175.64,23.776884]
[1730335574270,15.0317,175.69,175.64,23.776884]
[1730335575154,70.0,175.68,175.64,23.776884]
[1730335575452,70.0,175.68,175.64,29.470284]
[1730335576470,70.0,175.68,175.64,43.703884]
[1730335576851,15.0317,175.69,175.64,43.703884]
[1730335577949,70.0,175.68,175.64,38.010484]
[1730335578155,70.0,175.68,175.63,23.776884]
[1730335578463,70.0,175.66,175.62,5.6939]
[1730335578665,70.0,175.66,175.58,19.9339]
[1730335579062,70.0,175.68,175.58,48.4109]
[1730335579373,15.0317,175.69,175.58,48.5109]
[1730335579668,15.0317,175.69,175.59,0.2]
[1730335579965,15.0317,175.69,175.59,23.976884]
[1730335580880,70.0,175.68,175.59,23.776884]
[1730335581852,70.0,175.68,175.61,23.776884]
[1730335583261,70.0,175.68,175.63,23.776884]
[1730335583577,70.0,175.66,175.56,19.9361]
[1730335584857,70.0,175.63,175.56,19.9361]
[1730335585474,70.0,175.6,175.56,14.2401]
[1730335585960,70.0,175.6,175.56,19.9361]
[1730335586369,85.2409,175.62,175.56,19.9361]
[1730335586754,85.2409,175.62,175.57,23.776884]
[1730335586955,70.0,175.6,175.57,23.776884]
[1730335588262,70.0,175.6,175.56,14.2401]
[1730335588462,70.0,175.6,175.53,14.2424]
[1730335588463,70.0,175.58,175.53,14.2424]
[1730335589653,70.0,175.56,175.53,14.2424]
[1730335590061,70.0,175.56,175.49,28.49]
[1730335590460,70.0,175.56,175.48,19.9452]
[1730335591259,70.0,175.56,175.49,23.776884]